bitfinex/quotes_BTCUSD_20250527
["timestamp","ask_amount","ask_price","bid_price","bid_amount"]
[1748336076924,0.21079615,109630.0,109620.0,0.60559157]
[1748336077518,0.21079615,109630.0,109620.0,0.24310725]
[1748336077719,0.21079615,109630.0,109620.0,0.59646973]
[1748336077918,0.2016749,109630.0,109620.0,0.56516973]
[1748336078329,0.20167456,109630.0,109620.0,0.57429165]
[1748336078592,0.20167456,109630.0,109620.0,0.56516973]
[1748336078732,0.20167456,109630.0,109620.0,0.57969468]
[1748336082669,0.20167456,109630.0,109620.0,0.2263322]
[1748336082979,0.20167456,109630.0,109620.0,0.57969468]
[1748336083182,0.001,109630.0,109620.0,0.62131652]
[1748336083397,0.01012084,109630.0,109620.0,0.96131652]
[1748336083718,0.001,109630.0,109620.0,0.98868252]
[1748336083918,0.001,109630.0,109620.0,0.97415757]
[1748336087713,0.010121,109630.0,109620.0,0.97415757]
[1748336087953,0.02836342,109630.0,109620.0,0.94165757]
[1748336088176,0.03748484,109630.0,109620.0,0.94165757]
[1748336088494,0.02836342,109630.0,109620.0,1.21517757]
[1748336089123,0.03748484,109630.0,109620.0,1.21517757]
[1748336089357,0.02836342,109630.0,109620.0,1.21517757]
[1748336089570,0.03748476,109630.0,109620.0,1.21517757]
[1748336090482,0.04660618,109630.0,109620.0,1.21517757]
[1748336090932,0.04660618,109630.0,109620.0,1.22974621]
[1748336091113,0.22903799,109630.0,109620.0,1.22974621]
[1748336091329,0.04660668,109630.0,109620.0,1.22974621]
[1748336091541,0.22903849,109630.0,109620.0,1.22509501]
[1748336091911,0.21991766,109630.0,109620.0,0.92420891]
[1748336092118,0.24179632,109630.0,109620.0,1.17301411]
[1748336092330,0.2326749,109630.0,109620.0,0.97780899]
[1748336092569,0.2235534,109630.0,109620.0,0.35092651]
[1748336094061,0.2235534,109630.0,109620.0,0.01092651]
[1748336094264,0.2912203,109630.0,109620.0,0.53337496]
[1748336094484,0.001,109630.0,109620.0,0.93972579]
[1748336094642,0.001,109630.0,109620.0,0.95612579]
[1748336094849,0.01924184,109630.0,109620.0,0.95612579]
[1748336095255,0.02836293,109630.0,109620.0,0.95612579]
[1748336095456,0.03748427,109630.0,109620.0,0.95612579]
[1748336096488,0.03748418,109630.0,109620.0,0.95612579]
[1748336098765,0.0466056,109630.0,109620.0,0.93962579]
[1748336099181,0.04660552,109630.0,109620.0,0.59962579]
[1748336099413,0.0466061,109630.0,109620.0,0.58322579]
[1748336099622,0.03748468,109630.0,109620.0,0.58322579]
[1748336100477,0.04660618,109630.0,109620.0,0.58322579]
[1748336100683,0.03748468,109630.0,109620.0,0.58322579]
[1748336101802,0.0466061,109630.0,109620.0,0.22986331]
[1748336102016,0.0594751,109630.0,109620.0,0.58686792]
[1748336102228,0.01924234,109630.0,109620.0,0.58686792]
[1748336102440,0.01924193,109630.0,109620.0,0.61716792]
[1748336102660,0.001,109630.0,109620.0,0.61716792]
[1748336102864,0.01012084,109630.0,109620.0,0.61716792]
[1748336103296,0.01924176,109630.0,109620.0,0.61716792]
[1748336103512,0.02836285,109630.0,109620.0,0.61716792]
[1748336104812,0.01012084,109630.0,109620.0,0.61716792]
[1748336105018,0.01924193,109630.0,109620.0,0.95716792]
[1748336105408,0.01012084,109630.0,109620.0,0.95716792]
[1748336105597,0.02836301,109630.0,109620.0,0.95716792]
[1748336106423,0.01012084,109630.0,109620.0,0.95716792]
[1748336106858,0.01924184,109630.0,109620.0,0.95716792]
[1748336107309,0.001,109630.0,109620.0,0.95716792]
[1748336107757,0.001,109630.0,109620.0,0.98453492]
[1748336108857,0.001,109630.0,109620.0,0.96996628]
[1748336109866,0.2337744,109630.0,109620.0,0.367367]
[1748336110030,0.2236707,109620.0,109610.0,0.02876545]
[1748336110393,0.2236707,109620.0,109610.0,0.72212793]
[1748336110595,0.2236707,109620.0,109610.0,0.38212793]
[1748336110799,0.2236707,109620.0,109610.0,0.72212793]
[1748336110999,0.23279287,109620.0,109610.0,0.7079322]
[1748336111440,0.23279287,109620.0,109610.0,0.7089322]
[1748336111619,0.23379287,109620.0,109610.0,0.7099322]
[1748336112095,0.23379287,109620.0,109610.0,0.7208576]
[1748336112316,0.23379287,109620.0,109610.0,0.36749512]
[1748336116637,0.23379287,109620.0,109610.0,0.3529254]
[1748336117424,0.2246707,109620.0,109610.0,0.70628788]
[1748336117657,0.2246707,109620.0,109610.0,0.88875298]
[1748336117852,0.2246707,109620.0,109610.0,0.71541113]
[1748336118895,0.2246707,109620.0,109610.0,0.70628788]
[1748336119176,0.2246707,109620.0,109610.0,0.7208576]
[1748336120602,0.2246707,109620.0,109610.0,0.72998085]
[1748336121124,0.2246707,109620.0,109610.0,0.36749512]
[1748336121326,0.2246707,109620.0,109610.0,0.72998085]
[1748336123835,0.2246707,109620.0,109610.0,0.37661837]
[1748336124051,0.2246707,109620.0,109610.0,0.72998085]
[1748336124484,0.2246707,109620.0,109610.0,0.36749512]
[1748336124903,0.30168751,109620.0,109610.0,0.02749512]
[1748336125112,0.39123307,109620.0,109610.0,0.02749512]
[1748336125329,0.46540673,109620.0,109610.0,0.02749512]
[1748336125546,0.46540673,109620.0,109610.0,0.36749512]
[1748336125978,0.19158818,109610.0,109600.0,4.98755208]
[1748336126180,0.22348818,109610.0,109600.0,4.98755208]
[1748336127160,0.28825545,109610.0,109600.0,4.98755208]
[1748336127366,0.22353786,109610.0,109600.0,4.99055208]
[1748336127579,0.22453786,109610.0,109600.0,4.99255208]
[1748336127790,0.22453786,109610.0,109600.0,5.33255208]
[1748336129865,0.22453786,109610.0,109600.0,5.321636]
[1748336135147,0.21541478,109610.0,109600.0,5.321636]
[1748336135328,0.21541478,109610.0,109600.0,5.33076008]
[1748336135773,0.21541478,109610.0,109600.0,5.321636]
[1748336139100,0.21541478,109610.0,109600.0,5.67499848]
[1748336141591,0.19981478,109610.0,109600.0,5.52660431]
[1748336142463,0.19981478,109610.0,109600.0,5.67499848]
[1748336145753,0.18351478,109610.0,109600.0,5.67499848]
[1748336146618,0.18351478,109610.0,109600.0,5.321636]
[1748336146870,0.18351478,109610.0,109600.0,5.67499848]
[1748336147327,0.18351478,109610.0,109600.0,5.86660431]
[1748336147752,0.18351478,109610.0,109600.0,5.68412256]
[1748336150213,0.18351478,109610.0,109600.0,5.67499848]
[1748336154086,0.19263786,109610.0,109600.0,5.90662814]
[1748336155537,0.19263786,109610.0,109600.0,5.89750431]
[1748336155993,0.19263786,109610.0,109600.0,5.86236516]
[1748336156179,0.19263786,109610.0,109600.0,5.87148916]
[1748336156785,0.19263786,109610.0,109600.0,5.89482802]
[1748336157247,0.19263786,109610.0,109600.0,5.90395194]
[1748336158186,0.18351478,109610.0,109600.0,5.90395194]
[1748336158710,0.18351478,109610.0,109600.0,5.91307577]
[1748336159121,0.18351478,109610.0,109600.0,5.90395194]
[1748336159522,0.18351478,109610.0,109600.0,5.88570402]
[1748336160281,0.18351478,109610.0,109600.0,5.71429366]
[1748336160510,0.18351478,109610.0,109600.0,5.65968287]
[1748336161169,0.30346034,109610.0,109600.0,5.46807704]
[1748336162172,0.30346034,109610.0,109600.0,4.95344607]
[1748336162395,0.30346034,109610.0,109600.0,5.2716694]
[1748336162550,0.27306034,109610.0,109600.0,5.28079348]
[1748336162756,0.18351478,109610.0,109600.0,5.2716694]
[1748336166010,0.18351478,109610.0,109600.0,5.45415115]
[1748336166315,0.18351478,109610.0,109600.0,5.2716694]
[1748336171028,0.18351478,109610.0,109600.0,5.11415115]
[1748336171232,0.18351478,109610.0,109600.0,4.9316694]
[1748336173187,0.18351478,109610.0,109600.0,5.11415115]
[1748336173413,0.18351478,109610.0,109600.0,5.12873794]
[1748336175115,0.18351478,109610.0,109600.0,5.14698602]
[1748336175748,0.18351478,109610.0,109600.0,5.16318602]
[1748336175990,0.00104968,109610.0,109600.0,5.17230977]
[1748336176197,0.19263795,109610.0,109600.0,4.85408644]
[1748336176403,0.20176095,109610.0,109600.0,5.17230977]
[1748336176523,0.2108837,109610.0,109600.0,5.17230977]
[1748336176725,0.2108837,109610.0,109600.0,5.18143344]
[1748336177356,0.2108837,109610.0,109600.0,5.17230977]
[1748336177563,0.2108837,109610.0,109600.0,5.18143344]
[1748336180885,0.2108837,109610.0,109600.0,5.52143344]
[1748336181115,0.2108837,109610.0,109600.0,5.53055702]
[1748336181326,0.22000695,109610.0,109600.0,5.53055702]
[1748336182608,0.22000695,109610.0,109600.0,5.51435702]
[1748336189804,0.1459252,109610.0,109600.0,5.51435702]
[1748336190206,0.15504837,109610.0,109600.0,5.51435702]
[1748336191107,0.16417137,109610.0,109600.0,5.51435702]
[1748336192167,0.01824375,109620.0,109610.0,0.20983386]
[1748336192394,0.027366,109620.0,109610.0,0.52805719]
[1748336192597,0.21893678,109620.0,109610.0,0.51893452]
[1748336192799,0.21893678,109620.0,109610.0,0.52805735]
[1748336192800,0.20981503,109620.0,109610.0,0.52805735]
[1748336192998,0.20981503,109620.0,109610.0,0.5371801]
[1748336193199,0.20981503,109620.0,109610.0,0.54811699]
[1748336193411,0.20981503,109620.0,109610.0,0.55786906]
[1748336193564,0.20981503,109620.0,109610.0,0.53050056]
[1748336193766,0.20069303,109620.0,109610.0,0.53962356]
[1748336194108,0.20069303,109620.0,109610.0,0.54162356]
[1748336194311,0.20169303,109620.0,109610.0,0.54162356]
[1748336198888,0.19257078,109620.0,109610.0,0.54162356]
[1748336200144,0.19257078,109620.0,109610.0,0.55074648]
[1748336200752,0.19257078,109620.0,109610.0,0.54162356]
[1748336203789,0.21310563,109620.0,109610.0,0.21427723]
[1748336203983,0.31957929,109620.0,109610.0,0.53250056]
[1748336204183,0.31957929,109620.0,109610.0,0.54162364]
[1748336204598,0.31957929,109620.0,109610.0,0.34456219]
[1748336204807,0.31957929,109620.0,109610.0,0.02633886]
[1748336205059,0.31957929,109620.0,109610.0,0.34456219]
[1748336205472,0.24540563,109620.0,109610.0,0.34456219]
[1748336206021,0.21574845,109620.0,109610.0,0.34456219]
[1748336206216,0.30529401,109620.0,109610.0,0.02633886]
[1748336207026,0.30529401,109620.0,109610.0,0.03726956]
[1748336207786,0.30529401,109620.0,109610.0,0.02633886]
[1748336210927,0.30529401,109620.0,109610.0,0.03726991]
[1748336211293,0.35406659,109620.0,109610.0,0.03726991]
[1748336211499,0.62762659,109620.0,109610.0,0.03726991]
[1748336211901,0.6446987,109620.0,109610.0,0.03726991]
[1748336212330,0.6446987,109620.0,109610.0,0.02268312]
[1748336216735,0.59592612,109620.0,109610.0,0.02268312]
[1748336220000,0.57885401,109620.0,109610.0,0.02268312]
[1748336220488,0.30529401,109620.0,109610.0,0.02268312]
[1748336220711,0.57885401,109620.0,109610.0,0.02268312]
[1748336221720,0.57885401,109620.0,109610.0,0.02168312]
[1748336222048,0.57985401,109620.0,109610.0,0.01968312]
[1748336222377,0.58085401,109620.0,109610.0,0.01968312]
[1748336223155,0.003,109620.0,109610.0,0.57894031]
[1748336223360,0.003,109620.0,109610.0,1.51076364]
[1748336223775,0.003,109620.0,109610.0,1.19619605]
[1748336223987,0.003,109620.0,109610.0,1.51441938]
[1748336224185,0.003,109620.0,109610.0,1.96824494]
[1748336224803,0.001,109620.0,109610.0,1.95365815]
[1748336225766,1.25300774,109650.0,109640.0,0.54065626]
[1748336225985,1.25309846,109650.0,109640.0,0.54065626]
[1748336226151,1.2439792,109650.0,109640.0,0.54065626]
[1748336226348,1.23485969,109650.0,109640.0,0.53153576]
[1748336226574,1.23485969,109650.0,109640.0,0.54028783]
[1748336226968,1.23485969,109650.0,109640.0,0.5494835]
[1748336227174,1.23485969,109650.0,109640.0,0.55860433]
[1748336227370,1.23485969,109650.0,109640.0,0.56772483]
[1748336227666,1.23485969,109650.0,109640.0,0.55860433]
[1748336227852,1.23685969,109650.0,109640.0,0.55860433]
[1748336228054,1.23685969,109650.0,109640.0,0.35794774]
[1748336228259,1.23685969,109650.0,109640.0,0.54036291]
[1748336228842,1.23685969,109650.0,109640.0,0.54948366]
[1748336229310,1.23885969,109650.0,109640.0,0.54136291]
[1748336229756,1.20672998,109650.0,109640.0,0.54136291]
[1748336230468,1.20672998,109650.0,109640.0,0.55048366]
[1748336231615,1.20647932,109650.0,109640.0,0.55048366]
[1748336232189,1.19735956,109650.0,109640.0,0.35894774]
[1748336233405,1.19735956,109650.0,109640.0,0.21048366]
[1748336233815,1.20647923,109650.0,109640.0,0.22872475]
[1748336234017,1.20647923,109650.0,109640.0,0.23580433]
[1748336234220,1.20647923,109650.0,109640.0,0.24492492]
[1748336234436,1.20647923,109650.0,109640.0,0.58917334]
[1748336234692,1.19735956,109650.0,109640.0,0.59220433]
[1748336234925,1.20647857,109650.0,109640.0,0.94557334]
[1748336235154,1.20647932,109650.0,109640.0,0.93645267]
[1748336238388,1.20647932,109650.0,109640.0,0.7540375]
[1748336238678,1.20647932,109650.0,109640.0,0.74491675]
[1748336240562,1.20647932,109650.0,109640.0,0.71231675]
[1748336241278,1.19735956,109650.0,109640.0,0.71231675]
[1748336241818,1.19735956,109650.0,109640.0,0.35894774]
[1748336242551,1.22865956,109650.0,109640.0,0.35894774]
[1748336244094,1.31820512,109650.0,109640.0,0.35894774]
[1748336251184,1.40772663,109650.0,109640.0,0.00975207]
[1748336252481,1.4247778,109650.0,109640.0,0.00975207]
[1748336252890,1.43330987,109650.0,109640.0,0.00975207]
[1748336254069,1.34378836,109650.0,109640.0,0.00975207]
[1748336254878,1.34378836,109650.0,109640.0,0.02066607]
[1748336258827,1.34378836,109650.0,109640.0,0.00975207]
[1748336259255,1.34378836,109650.0,109630.0,0.35996859]
[1748336259495,0.28108132,109640.0,109630.0,0.01996859]
[1748336259729,0.55460132,109640.0,109630.0,0.01996859]
[1748336259946,0.56960132,109640.0,109630.0,0.01996859]
[1748336261041,0.58540132,109640.0,109630.0,0.01996859]
[1748336261692,0.58540132,109640.0,109630.0,0.010914]
[1748336262407,0.19155323,109630.0,109620.0,0.382314]
[1748336262844,0.19155323,109630.0,109620.0,0.042314]
[1748336263287,0.19155323,109630.0,109620.0,0.05143642]
[1748336263519,0.19155323,109630.0,109620.0,0.39143642]
[1748336263757,0.19255323,109630.0,109620.0,0.39143642]
[1748336263954,0.19255323,109630.0,109620.0,0.382314]
[1748336264308,0.19255323,109630.0,109620.0,0.39243642]
[1748336264508,0.19255323,109630.0,109620.0,0.383314]
[1748336265024,0.19255323,109630.0,109620.0,0.39243642]
[1748336266939,0.20167457,109630.0,109620.0,0.92825388]
[1748336267180,0.20167457,109630.0,109620.0,0.93737621]
[1748336267391,0.20167457,109630.0,109620.0,0.74580543]
[1748336268921,0.20167457,109630.0,109620.0,0.73668301]
[1748336269135,0.20167457,109630.0,109620.0,0.74580543]
[1748336269397,0.20167457,109630.0,109620.0,0.73668301]
[1748336269838,0.20167457,109630.0,109620.0,0.74580543]
[1748336270020,0.20167457,109630.0,109620.0,0.71421939]
[1748336270569,0.20167457,109630.0,109620.0,0.70509697]
[1748336270801,0.20167457,109630.0,109620.0,0.67369697]
[1748336271681,0.20167457,109630.0,109620.0,0.70469697]
[1748336272859,0.20167457,109630.0,109620.0,0.71343849]
[1748336273667,0.20167457,109630.0,109620.0,0.72256091]
[1748336273887,0.20167457,109630.0,109620.0,0.71343849]
[1748336274082,0.20167457,109630.0,109620.0,0.69803849]
[1748336275169,0.19255323,109630.0,109620.0,0.68243849]
[1748336275789,0.39118219,109630.0,109620.0,0.02429352]
[1748336276419,0.28209879,109630.0,109620.0,0.02429352]
[1748336276652,0.28209879,109630.0,109620.0,0.31914497]
[1748336276783,0.28209879,109630.0,109620.0,0.33007418]
[1748336276982,0.28209879,109630.0,109620.0,0.01192921]
[1748336279762,0.28209879,109630.0,109620.0,0.33007418]
[1748336280016,0.19255323,109630.0,109620.0,0.34507418]
[1748336280227,0.19255323,109630.0,109620.0,0.33007418]
[1748336281209,0.26672689,109630.0,109620.0,0.01192921]
[1748336281417,0.23323007,109630.0,109620.0,0.01192921]
[1748336282918,0.19255323,109630.0,109620.0,0.01192921]
[1748336283960,0.20895323,109630.0,109620.0,0.01192921]
[1748336286348,0.29849879,109630.0,109620.0,0.01192921]
[1748336287543,0.29849879,109630.0,109620.0,0.33007418]
[1748336287902,0.28209879,109630.0,109620.0,0.33007418]
[1748336291194,0.28209879,109630.0,109620.0,0.01192921]
[1748336291391,0.28209879,109630.0,109620.0,0.33007418]
[1748336292530,0.35101116,109630.0,109620.0,0.01192921]
[1748336292779,0.35101116,109630.0,109620.0,0.33007418]
[1748336293776,0.28209879,109630.0,109620.0,0.33007418]
[1748336294196,0.28209879,109630.0,109620.0,0.01192921]
[1748336294197,0.29849879,109630.0,109620.0,0.01192921]
[1748336294407,0.29849879,109630.0,109620.0,0.33007418]
[1748336294976,0.28209879,109630.0,109620.0,0.33007418]
[1748336297211,0.28209879,109630.0,109620.0,0.01192921]
[1748336297417,0.35901619,109630.0,109620.0,0.01192921]
[1748336297650,0.35901619,109630.0,109620.0,0.33007418]
[1748336298035,0.35901619,109630.0,109620.0,0.01192921]
[1748336298673,0.39111619,109630.0,109620.0,0.01192921]
[1748336299647,0.39111619,109630.0,109620.0,0.02067167]
[1748336301211,0.40818327,109630.0,109620.0,0.02067167]
[1748336301420,0.40818327,109630.0,109620.0,0.00974246]
[1748336302928,0.33126587,109630.0,109620.0,0.00974246]
[1748336309511,0.29916587,109630.0,109620.0,0.00974246]
[1748336309731,0.29782007,109630.0,109620.0,0.00974246]
[1748336310409,0.29782007,109630.0,109620.0,0.32788743]
[1748336311191,0.29782007,109630.0,109620.0,0.00974246]
[1748336313764,0.31382007,109630.0,109620.0,0.00974246]
[1748336321601,0.29782007,109630.0,109620.0,0.32788743]
[1748336322643,0.29782007,109630.0,109620.0,0.00974246]
[1748336325249,0.29782007,109630.0,109620.0,0.32788743]
[1748336326132,0.01806708,109630.0,109620.0,1.22834703]
[1748336326338,0.01806708,109630.0,109620.0,1.50190703]
[1748336326339,0.01924209,109630.0,109620.0,1.50190703]
[1748336326730,0.01012092,109630.0,109620.0,1.50190703]
[1748336326939,0.01924201,109630.0,109620.0,1.50190703]
[1748336327472,0.01924201,109630.0,109620.0,1.86410703]
[1748336327675,0.01012092,109630.0,109620.0,1.86410703]
[1748336327902,0.01924209,109630.0,109620.0,1.86410703]
[1748336328321,0.001,109630.0,109620.0,1.95365259]
[1748336328736,0.001,109630.0,109620.0,1.98101659]
[1748336330195,0.001,109630.0,109620.0,1.34472665]
[1748336330421,0.001,109630.0,109620.0,1.98101659]
[1748336339243,0.001,109630.0,109620.0,2.27751659]
[1748336340548,0.001,109630.0,109620.0,1.64122665]
[1748336340792,0.001,109630.0,109620.0,2.27751659]
[1748336343442,0.001,109630.0,109620.0,2.04866768]
[1748336343640,0.001,109630.0,109620.0,2.23111613]
[1748336344363,0.001,109630.0,109620.0,2.24562342]
[1748336344783,0.001,109630.0,109620.0,2.04857041]
[1748336345001,0.001,109630.0,109620.0,1.90065917]
[1748336345352,0.001,109630.0,109620.0,1.90978142]
[1748336346549,0.001,109630.0,109620.0,1.94068142]
[1748336346819,0.001,109630.0,109620.0,2.28068142]
[1748336347820,1.00184006,109650.0,109640.0,0.20977643]
[1748336348037,1.00184006,109650.0,109640.0,1.60317193]
[1748336348508,1.00184006,109650.0,109640.0,1.63053193]
[1748336348957,1.00184006,109650.0,109640.0,1.97053193]
[1748336349185,1.00284006,109650.0,109640.0,1.97053193]
[1748336349426,1.00384006,109650.0,109640.0,1.98543108]
[1748336350052,1.00384006,109650.0,109640.0,1.71322331]
[1748336351072,1.00384006,109650.0,109640.0,2.00972331]
[1748336352428,1.00384006,109650.0,109640.0,1.99884443]
[1748336354502,1.00384006,109650.0,109640.0,2.01335172]
[1748336355740,1.00384006,109650.0,109640.0,2.00755992]
[1748336360049,1.00284006,109650.0,109640.0,2.00655992]
[1748336360253,1.00184006,109650.0,109640.0,2.00655992]
[1748336360458,1.00284006,109650.0,109640.0,2.00855992]
[1748336360903,1.00284006,109650.0,109640.0,1.99984443]
[1748336371924,1.00284006,109650.0,109640.0,2.28238296]
[1748336372797,1.00284006,109650.0,109640.0,2.26608296]
[1748336373000,1.00284006,109650.0,109640.0,2.24998296]
[1748336373181,1.00284006,109650.0,109640.0,2.27874841]
[1748336376367,1.00284006,109650.0,109640.0,2.00526841]
[1748336376585,1.00284006,109650.0,109640.0,2.27866841]
[1748336380112,1.00284006,109650.0,109640.0,1.64292659]
[1748336380343,1.00284006,109650.0,109640.0,2.27866841]
[1748336381991,1.00288006,109650.0,109640.0,2.27866841]
[1748336384958,1.00288006,109650.0,109640.0,1.93866841]
[1748336391418,1.00288006,109650.0,109640.0,2.27866841]
[1748336396537,1.01788006,109650.0,109640.0,2.27866841]
[1748336397770,1.00288006,109650.0,109640.0,2.27866841]
[1748336399217,1.01808006,109650.0,109640.0,2.27866841]
[1748336399757,1.00288006,109650.0,109640.0,1.64358841]
[1748336399965,1.00288006,109650.0,109640.0,2.27778841]
[1748336400604,0.95731864,109650.0,109640.0,2.27778841]
[1748336400810,0.6078078,109650.0,109640.0,2.50248041]
[1748336401236,0.6078078,109650.0,109640.0,2.47371496]
[1748336401443,0.571913,109650.0,109640.0,2.47371496]
[1748336401933,0.52635158,109650.0,109640.0,2.47371496]
[1748336402169,0.2438199,109650.0,109640.0,2.80158587]
[1748336402411,0.18140538,109650.0,109640.0,3.35512672]
[1748336402713,0.13584396,109650.0,109640.0,3.35512672]
[1748336402957,0.02518311,109650.0,109640.0,3.35512672]
[1748336403177,0.0312,109680.0,109670.0,0.54971906]
[1748336403400,0.03169707,109680.0,109670.0,1.90920644]
[1748336404046,0.03169707,109680.0,109670.0,1.61868853]
[1748336404969,0.03169707,109680.0,109670.0,1.64195355]
[1748336405189,0.03469707,109680.0,109670.0,1.95982446]
[1748336405889,0.03469707,109680.0,109670.0,1.32408264]
[1748336406156,0.07116478,109680.0,109670.0,1.51589731]
[1748336406397,0.33298429,109680.0,109670.0,0.02326502]
[1748336406621,0.3393664,109680.0,109670.0,0.00873359]
[1748336406828,0.3393664,109680.0,109670.0,0.01962805]
[1748336407930,0.3393664,109680.0,109660.0,0.51226947]
[1748336408141,0.04983527,109670.0,109660.0,0.85226947]
[1748336408351,0.05895328,109670.0,109660.0,0.85226947]
[1748336408563,0.0589532,109670.0,109660.0,0.85226947]
[1748336409210,0.0589532,109670.0,109660.0,0.57886947]
[1748336409425,0.0589532,109670.0,109660.0,0.85222947]
[1748336409633,0.0589532,109670.0,109660.0,0.85322947]
[1748336410153,0.04983527,109670.0,109660.0,0.85322947]
[1748336410581,0.0589532,109670.0,109660.0,0.85322947]
[1748336410791,0.06807112,109670.0,109660.0,0.57986947]
[1748336411050,0.06807112,109670.0,109660.0,0.85326947]
[1748336411454,0.05895311,109670.0,109660.0,0.85326947]
[1748336411655,0.06807104,109670.0,109660.0,0.85326947]
[1748336411871,0.07718905,109670.0,109660.0,0.85326947]
[1748336412076,0.06807104,109670.0,109660.0,0.85326947]
[1748336413940,0.06807104,109670.0,109660.0,0.85690644]
[1748336414121,0.0316,109670.0,109660.0,0.85690644]
[1748336414545,0.03164,109670.0,109660.0,0.85690644]
[1748336414986,0.03164,109670.0,109660.0,0.50237501]
[1748336415838,0.04075751,109670.0,109660.0,0.50237501]
[1748336416308,0.03164,109670.0,109660.0,0.50237501]
[1748336418338,0.03164,109670.0,109660.0,0.84237501]
[1748336419672,0.04075751,109670.0,109660.0,0.84237501]
[1748336419883,0.25047657,109670.0,109660.0,0.53250081]
[1748336420085,0.25047657,109670.0,109660.0,0.82413858]
[1748336420295,0.25959483,109670.0,109660.0,0.81501982]
[1748336420502,0.24135964,109670.0,109660.0,0.83325741]
[1748336420717,0.24135964,109670.0,109660.0,0.84778272]
[1748336421131,0.24135964,109670.0,109660.0,0.85690131]
[1748336421838,0.22822936,109670.0,109660.0,0.85690131]
[1748336422258,0.22822936,109670.0,109660.0,1.21738131]
[1748336422710,0.04586342,109670.0,109660.0,1.21738073]
[1748336423557,4e-05,109670.0,109660.0,1.5523875]
[1748336423766,0.00049707,109680.0,109660.0,1.97059785]
[1748336423988,0.0085251,109690.0,109680.0,0.54969994]
[1748336424212,0.00861573,109690.0,109680.0,1.96644871]
[1748336424424,0.05176403,109690.0,109680.0,1.16158639]
[1748336424630,0.05176403,109690.0,109680.0,0.88818639]
[1748336424631,0.05176394,109690.0,109680.0,0.88818639]
[1748336424843,0.04982242,109690.0,109680.0,0.87921839]
[1748336425040,0.04070649,109690.0,109680.0,0.85186539]
[1748336425253,0.0498225,109690.0,109680.0,0.85186539]
[1748336425692,0.00109064,109690.0,109680.0,1.58335112]
[1748336425908,0.00109064,109690.0,109680.0,1.47984112]
[1748336426126,0.00109064,109690.0,109680.0,1.49524112]
[1748336426369,0.00109064,109690.0,109680.0,1.46648612]
[1748336426575,0.00109064,109690.0,109680.0,1.46848612]
[1748336426787,0.00109064,109690.0,109680.0,1.45258612]
[1748336427189,0.00109064,109690.0,109680.0,1.41097771]
[1748336427903,0.00109064,109690.0,109680.0,1.39275671]
[1748336428329,0.00109064,109690.0,109680.0,1.38078871]
[1748336428888,0.00109064,109690.0,109680.0,1.26984771]
[1748336429340,0.00109064,109690.0,109680.0,1.38008871]
[1748336429578,0.00109064,109690.0,109680.0,1.26984771]
[1748336430874,0.00109064,109690.0,109680.0,1.46366271]
[1748336431101,0.00109064,109690.0,109680.0,1.26984771]
[1748336432705,0.00109064,109690.0,109680.0,1.26976771]
[1748336434020,0.01649064,109690.0,109680.0,1.18022215]
[1748336434975,0.01649064,109690.0,109680.0,0.90690215]
[1748336435217,0.06033918,109690.0,109680.0,0.21369994]
[1748336435422,0.05122275,109690.0,109680.0,0.90690215]
[1748336435631,0.06033884,109690.0,109680.0,0.90690215]
[1748336435831,0.06033884,109690.0,109680.0,0.91372016]
[1748336436025,0.03299064,109690.0,109680.0,0.92458513]
[1748336436339,0.02560657,109690.0,109680.0,0.92458513]
[1748336436562,0.03472267,109690.0,109680.0,0.92458513]
[1748336436763,0.03472258,109690.0,109680.0,0.92458513]
[1748336437046,0.03472258,109690.0,109680.0,1.21239176]
[1748336437252,0.05933876,109690.0,109680.0,1.21239176]
[1748336437679,0.05022258,109690.0,109680.0,1.21239176]
[1748336437859,0.05933876,109690.0,109680.0,1.21239176]
[1748336438091,0.05022258,109690.0,109680.0,1.21239176]
[1748336438294,0.05933884,109690.0,109680.0,1.21239176]
[1748336438499,0.05022258,109690.0,109680.0,1.21239176]
[1748336438709,0.05933876,109690.0,109680.0,1.21239176]
[1748336438890,0.06845502,109690.0,109680.0,1.21239176]
[1748336439329,0.07757145,109690.0,109680.0,1.21239176]
[1748336439541,0.05933876,109690.0,109680.0,1.21239176]
[1748336439753,0.25078721,109690.0,109680.0,0.5676356]
[1748336439961,0.3654112,109690.0,109680.0,0.03616961]
[1748336440376,0.32210083,109690.0,109680.0,0.03616961]
[1748336440584,0.32210083,109690.0,109680.0,0.01081801]
[1748336440796,0.32210083,109690.0,109680.0,0.35081801]
[1748336441397,0.59542083,109690.0,109680.0,0.01081801]
[1748336441635,0.60896168,109690.0,109680.0,0.00681801]
[1748336441847,0.68808949,109690.0,109680.0,0.00881801]
[1748336444107,1.04852949,109690.0,109680.0,0.00881801]
[1748336445376,0.96940168,109690.0,109680.0,0.00781801]
[1748336445587,0.96940168,109690.0,109680.0,0.00681801]
[1748336446009,0.97140168,109690.0,109680.0,0.00681801]
[1748336447281,0.97144168,109690.0,109680.0,0.00681801]
[1748336448870,0.22336591,109680.0,109670.0,0.35320221]
[1748336449091,0.31291147,109680.0,109670.0,0.35320221]
[1748336449307,0.32202865,109680.0,109670.0,0.53556748]
[1748336449508,0.59542865,109680.0,109670.0,0.35320221]
[1748336449718,0.59542865,109680.0,109670.0,0.35314221]
[1748336450099,0.59542865,109680.0,109670.0,0.35414221]
[1748336450598,0.59542865,109680.0,109670.0,0.53650748]
[1748336451030,0.31291147,109680.0,109670.0,0.53750748]
[1748336451204,0.22336591,109680.0,109670.0,0.55574375]
[1748336451608,0.20696591,109680.0,109670.0,0.56486168]
[1748336452903,0.20696591,109680.0,109670.0,0.21171947]
[1748336453103,0.27324477,109680.0,109670.0,0.55580383]
[1748336453505,0.20696591,109680.0,109670.0,0.5740396]
[1748336453917,0.03373427,109680.0,109670.0,0.5740396]
[1748336454119,0.03373427,109680.0,109670.0,0.58315728]
[1748336454324,0.22520026,109680.0,109670.0,0.58315728]
[1748336454475,0.03373377,109680.0,109670.0,0.58315728]
[1748336454677,0.02461685,109680.0,109670.0,0.58315728]
[1748336454881,0.01823386,109680.0,109670.0,0.58315728]
[1748336455313,0.03332291,109690.0,109680.0,0.20970019]
[1748336455510,0.04243934,109690.0,109680.0,0.57201925]
[1748336455761,0.23388787,109690.0,109680.0,0.57201925]
[1748336456270,0.24300447,109690.0,109680.0,0.57201925]
[1748336456689,0.24400447,109690.0,109680.0,0.57201925]
[1748336456905,0.04343934,109690.0,109680.0,0.57201925]
[1748336457109,0.23488787,109690.0,109680.0,0.57201925]
[1748336457328,0.23588787,109690.0,109680.0,0.57201925]
[1748336457541,0.24500447,109690.0,109680.0,0.57201925]
[1748336458667,0.22088846,109690.0,109680.0,0.5629024]
[1748336458886,0.00209064,109690.0,109680.0,0.57201925]
[1748336459099,0.01120657,109690.0,109680.0,0.57201925]
[1748336459329,0.01120657,109690.0,109680.0,0.61497225]
[1748336459538,0.01120649,109690.0,109680.0,0.61497225]
[1748336459948,0.0294386,109690.0,109680.0,0.62583722]
[1748336460177,0.03855503,109690.0,109680.0,0.61023722]
[1748336460385,0.03855495,109690.0,109680.0,0.61023722]
[1748336460625,0.0294386,109690.0,109680.0,0.61023722]